Cogmind - Beta 13 @@@ ROGUE MODE // 2024.04.11 @ 17:56:15 Player: NikedNOGsing_in_can't Result: Destroyed by S-27 Virus with Autogun Performance ------------- Evolutions (6) 3000 Regions Visited (12) 2400 Robots Destroyed (92) 460 Value Destroyed (2225) 2225 Prototype IDs (14) 280 Alien Tech Used (0) 0 Bonus (1090) 1090 TOTAL SCORE: 9455 Bonus ------- High Alert Combat Kills 90 Entered DSFs 1000 Cogmind --------- Core Integrity 0/1150 Matter 161/300 Energy 98/100 System Corruption 27% Temperature Cool (0) Movement Core (50) Location -4/Factory Parts ------- > --- POWER (2) -------- (None) > --- PROPULSION (7) --- (None) > --- UTILITY (6) ------ Advanced Coolant Injector Advanced Visual Processing Unit Improved Armor Integrity Analyzer > --- WEAPON (4) ------- (None) > --- INVENTORY (5) ---- Light Ion Engine Micro Fission Core Light Antimatter Reactor Advanced Medium Treads Chainsword Peak State ------------ > --- POWER ------------ F-cell Engine Micro Fission Core > --- PROPULSION ------- VTOL Module Improved VTOL Module Xenon Bombardment Thruster Nuclear Pulse Thruster Nuclear Pulse Thruster > --- UTILITY ---------- Improved Cooling System Advanced Weight Redist. System Advanced Visual Processing Unit Targeting Computer System Shield > --- WEAPON ----------- High-powered Shock Rifle Disruptor Cannon Autogun Gauss Rifle > --- INVENTORY -------- Improved Cryofiber Web Hacking Suite Long-range Missile Launcher Remote Datajack Chainsword [Rating: 65] Favorites ----------- Power Ion Engine Engine Ion Engine Power Core Micro Nuclear Core Reactor Antimatter Reactor Propulsion Light Treads Treads Light Treads Leg Armored Leg Hover Unit Antigrav System Flight Unit Improved Flight Unit Utility Targeting Computer Device Tractor Beam Storage Large Storage Unit Processor Targeting Computer Hackware System Shield Protection Hardened Medium Armor Plating Weapon Assault Rifle Energy Gun High-powered Shock Rifle Energy Cannon Advanced Beam Cannon Ballistic Gun Assault Rifle Ballistic Cannon Antimatter Cannon Launcher Grenade Launcher Special Weapon Remote Datajack Slashing Weapon Chainsword Build | -11 -10 -10 -9 -8 -7 -7 -6 -6 -6 -5 -5 -4 ------- Run | Yrd Mat Min Mat Mat Fac DSF Fac Low Low Fac DSF Fac Slots Evolved 12 | . . . 2 2 2 . 2 . . 2 . 2 Power 1 | . . . . . 1 . . . . . . . Propulsion 5 | . . . 2 . 1 . . . . 1 . 1 Utility 4 | . . . . 1 . . 2 . . . . 1 Weapon 2 | . . . . 1 . . . . . 1 . . Parts Attached 144 | 7 1 3 24 28 12 9 16 7 . 5 4 28 Power 24 | 1 . . 2 2 6 2 4 . . 1 . 6 Engine 14 | 1 . . 2 1 4 1 2 . . . . 3 Core 8 | . . . . 1 2 1 2 . . 1 . 1 Reactor 2 | . . . . . . . . . . . . 2 Propulsion 40 | 2 . 2 13 2 2 2 3 1 . 1 2 10 Treads 13 | 2 . 2 4 . . 2 . . . . . 3 Leg 2 | . . . . . . . . . . . 2 . Wheel . | . . . . . . . . . . . . . Hover 5 | . . . . . . . . . . . . 5 Flight 20 | . . . 9 2 2 . 3 1 . 1 . 2 Utility 18 | 2 1 1 1 3 . 2 2 . . . 1 5 Device 8 | 1 . . . 1 . 1 1 . . . 1 3 Storage 2 | 1 1 . . . . . . . . . . . Processor 4 | . . 1 1 1 . . . . . . . 1 Hackware 3 | . . . . 1 . . 1 . . . . 1 Protection 1 | . . . . . . 1 . . . . . . Artifact . | . . . . . . . . . . . . . Weapon 62 | 2 . . 8 21 4 3 7 6 . 3 1 7 Energy Gun 14 | . . . 2 3 1 3 . . . 2 . 3 Energy Cannon 5 | . . . 1 3 . . . . . 1 . . Ballistic Gun 18 | 2 . . 4 4 . . 4 2 . . . 2 Ballistic Cannon 1 | . . . . . . . 1 . . . . . Launcher 15 | . . . 1 7 2 . 1 2 . . 1 1 Special Weapon 8 | . . . . 4 1 . 1 2 . . . . Impact Weapon . | . . . . . . . . . . . . . Slashing Weapon 1 | . . . . . . . . . . . . 1 Piercing Weapon . | . . . . . . . . . . . . . Special Melee Weapon . | . . . . . . . . . . . . . Unidentified Prototypes 14 | . . . 4 5 2 . 2 . . 1 . . Parts Lost 48 | . . . . 1 . 9 1 2 . . 11 24 Power 8 | . . . . . . 2 . . . . 2 4 Propulsion 18 | . . . . . . 2 1 1 . . 5 9 Utility 9 | . . . . . . 1 . . . . 3 5 Weapon 13 | . . . . 1 . 4 . 1 . . 1 6 Highest Loss Streak 10 | . . . . 1 . 7 1 1 . . 10 9 To Critical Strikes . | . . . . . . . . . . . . . Average Slot Usage (%) 85 | . 100 100 99 98 97 76 81 96 86 82 43 46 Engine 8 | . 14 14 11 4 6 6 6 6 6 5 . 1 Core 2 | . . . . 4 6 4 6 6 6 5 . . Treads 11 | . 28 28 20 . . . . . . . . . Hover 1 | . . . . . . . . . . . . 6 Flight 14 | . . . 23 36 36 30 19 29 26 26 3 . Device 7 | . 14 11 . 3 . . 11 13 13 11 5 5 Storage 4 | . 14 14 5 . . . . . . . . . Processor 10 | . . 2 16 18 15 15 13 13 13 11 11 10 Hackware 3 | . . . . 4 7 . 6 6 6 5 5 5 Energy Gun 2 | . . . 5 2 4 9 6 2 . . . 2 Ballistic Gun 13 | . 28 28 16 7 7 1 4 9 13 11 1 3 Launcher 1 | . . . . 11 6 2 2 3 . . 3 . Naked Turns . | . . . . . . . . . . . . . Heaviest Build 37 | 15 30 30 32 20 25 36 33 37 27 35 31 26 Greatest Support 80 | 40 40 40 80 28 26 26 32 36 30 36 36 45 Greatest Overweight (x) 2 | . . . 1 1 1 1 2 1 . . 2 2 Average Overweight (x) . | . . . . . . . . . . . . . Largest Inventory Capacity 15 | 8 15 15 15 5 5 5 5 5 5 5 5 5 Average Capacity 7 | 7 10 15 10 5 5 5 5 5 5 5 5 5 Most Carried 15 | 5 10 14 15 5 5 5 5 5 5 5 5 5 Average Carried 6 | 3 7 10 9 4 4 3 4 5 5 5 4 3 Final Capacity 15 | 8 15 15 5 5 5 5 5 5 5 5 5 5 Final Carried 14 | 4 10 14 5 5 5 5 5 5 5 5 4 5 Class Distribution -------------------- 48% | Mutant 27% | Sprinter 9% | Gunner 6% | Scavenger-Sprinter 4% | Hacker-Mutant 3% | Scavenger-Mutant Dominant Class ---------------- Mutant | -10/Materials Mutant | -10/Mines Scavenger-Sprinter | -9/Materials Sprinter | -8/Materials Sprinter | -7/Factory Sprinter | -7/DSF Sprinter | -6/Factory Sprinter | -6/Lower Caves Sprinter | -6/Lower Caves Sprinter | -5/Factory Mutant | -5/DSF Mutant | -4/Factory Resources | -11 -10 -10 -9 -8 -7 -7 -6 -6 -6 -5 -5 -4 ----------- Run | Yrd Mat Min Mat Mat Fac DSF Fac Low Low Fac DSF Fac Matter Collected 2726 | 288 331 149 444 661 . 144 112 242 . . 19 336 Remotely 490 | 10 331 149 . . . . . . . . . . Salvage Created 2998 | 100 541 105 463 767 . 444 112 198 . . . 268 Parts 200 | 2 36 16 42 45 . 26 7 10 . . . 16 Haulers Intercepted 6 | . . . 3 3 . . . . . . . . Recyclers Shooed 6 | . 2 1 3 . . . . . . . . . Parts Field Recycled . | . . . . . . . . . . . . . Retrieved Matter . | . . . . . . . . . . . . . Parts Self-Destructed 4 | . . . . . . . . 4 . . . . Prevented . | . . . . . . . . . . . . . Kills | -11 -10 -10 -9 -8 -7 -7 -6 -6 -6 -5 -5 -4 ------- Run | Yrd Mat Min Mat Mat Fac DSF Fac Low Low Fac DSF Fac Combat Hostiles Destroyed 54 | . 13 3 5 17 . 6 1 5 . . . 4 Melee 3 | . . . . . . . . . . . . 3 Guns 31 | . 13 3 5 2 . 4 1 2 . . . 1 Cannons 1 | . . . . 1 . . . . . . . . AOE 18 | . . . . 14 . 1 . 3 . . . . Classes Destroyed 14 | 1 4 1 4 . . 2 1 1 . . . . Worker 7 | . . . 1 4 . . 1 . . . . 1 Builder 4 | . . 1 1 1 . . . . . . . 1 Tunneler 5 | . 2 2 . 1 . . . . . . . . Hauler 6 | . . . 3 3 . . . . . . . . Recycler 6 | 1 1 . 2 2 . . . . . . . . Operator 3 | . . . 1 2 . . . . . . . . Watcher 7 | . 3 . 2 1 . . 1 . . . . . Swarmer 20 | . 6 3 4 3 . . . 4 . . . . Grunt 23 | . 7 . . 12 . 3 . 1 . . . . Sentry 4 | . . . 1 2 . 1 . . . . . . Specialist 1 | . . . . . . 1 . . . . . . Programmer 5 | . . . . . . . 1 . . . . 4 Heavy 1 | . . . . . . 1 . . . . . . Samaritan 1 | . . . . . . . . 1 . . . . Best Kill Streak 12 | 1 5 3 6 12 . 5 1 4 . . . 1 Combat Bots Only 6 | . 4 3 4 6 . 5 1 4 . . . 1 Max Kills in Single Turn 4 | 1 2 1 2 4 . 1 1 3 . . . 1 Gunslinging . | . . . . . . . . . . . . . Exploded 3 | . . . . 3 . 1 . 3 . . . . Melee 1 | . . . . . . . . . . . . 1 Uniques/NPCs Destroyed . | . . . . . . . . . . . . . Combat | -11 -10 -10 -9 -8 -7 -7 -6 -6 -6 -5 -5 -4 -------- Run | Yrd Mat Min Mat Mat Fac DSF Fac Low Low Fac DSF Fac Hostile Shots Fired 492 | . 69 10 19 39 9 86 4 20 . . 10 226 Missed 162 | . 17 2 4 18 5 22 1 10 . . 4 79 Damage Taken 6421 | . 535 69 165 382 63 1127 58 250 . . 946 2826 Core 1996 | . 101 . 35 62 5 263 . . . . 371 1159 Absorbed by Shields . | . . . . . . . . . . . . . Regen/Repaired (Parts) 118 | . . . 19 . 99 . . . . . . . Core Remaining (%) 80 | 100 . 59 91 88 . 61 . . 100 . 62 . Volleys Fired 242 | 3 57 18 40 48 3 19 15 16 . . . 23 Largest 3 | 2 2 2 2 3 1 3 2 3 . . . 3 Hottest 163 | 40 40 40 79 163 100 150 88 131 . . . 123 Shots Fired 456 | 6 114 36 80 97 3 42 19 24 . . . 35 Gun 385 | 6 114 36 80 42 . 35 16 21 . . . 35 Cannon 18 | . . . . 18 . . . . . . . . Launcher 43 | . . . . 32 1 7 . 3 . . . . Special 10 | . . . . 5 2 . 3 . . . . . Kinetic 297 | 6 114 36 68 36 . 4 4 13 . . . 16 Thermal 32 | . . . 12 18 2 . . . . . . . Explosive 43 | . . . . 32 1 7 . 3 . . . . Electromagnetic 81 | . . . . 11 . 31 12 8 . . . 19 Robot Hit Streak 13 | 4 12 4 8 10 . 13 5 3 . . . 10 Robot Miss Streak 8 | 1 3 2 5 3 . 3 3 2 . . . 8 Penetration Max 1 | . . . . . . . . . . . . 1 Secondary Targets 2 | . 1 1 . . . . . . . . . . Max Gunslinging Chain 1 | . 1 1 . . . . . . . . . . Shots Hit Robots 283 | 5 77 14 48 50 . 27 12 11 . . . 39 Core Hits 165 | 2 30 7 18 58 . 23 4 11 . . . 12 Critical Kills . | . . . . . . . . . . . . . Critical Parts Destroyed 3 | . 2 . . . . . . . . . . 1 Critical Strikes 9 | . 2 . 2 . . . . 1 . . . 4 Burn 2 | . . . 2 . . . . . . . . . Destroy 3 | . 2 . . . . . . . . . . 1 Corrupt 1 | . . . . . . . . 1 . . . . Sever 3 | . . . . . . . . . . . . 3 Melee Attacks 24 | . . . . . . . . . . . . 24 Impact . | . . . . . . . . . . . . . Slashing 24 | . . . . . . . . . . . . 24 Piercing . | . . . . . . . . . . . . . Sneak Attacks 5 | . . . . . . . . . . . . 5 Combat Hostiles . | . . . . . . . . . . . . . Follow-up Attacks . | . . . . . . . . . . . . . Damage Inflicted 7388 | 57 980 174 680 2555 . 960 260 534 . . . 1188 Guns 3603 | 57 980 174 680 342 . 450 260 240 . . . 420 Cannons 383 | . . . . 383 . . . . . . . . Explosions 2610 | . . . . 1806 . 510 . 294 . . . . Melee 759 | . . . . . . . . . . . . 759 Ramming 9 | . . . . . . . . . . . . 9 Kinetic 2670 | 57 980 174 526 282 . 54 71 144 . . . 382 Thermal 462 | . . . 154 254 . 54 . . . . . . Explosive 2490 | . . . . 1740 . 456 . 294 . . . . Electromagnetic 998 | . . . . 279 . 396 189 96 . . . 38 Impact . | . . . . . . . . . . . . . Slashing 759 | . . . . . . . . . . . . 759 Piercing . | . . . . . . . . . . . . . Highest Corruption 27 | . . . . . . . . . . 2 2 27 Average Corruption 18 | . . . . . . . . . . 2 2 20 Corruption Purged . | . . . . . . . . . . . . . Corruption Blocked . | . . . . . . . . . . . . . Effects 51 | . . . . . . . . . . 1 2 48 Message Errors 13 | . . . . . . . . . . . . 13 Matter Fused 9 | . . . . . . . . . . 1 . 8 Heat Flow Errors 8 | . . . . . . . . . . . 1 7 Energy Discharges 4 | . . . . . . . . . . . 1 3 Parts Fused 1 | . . . . . . . . . . . . 1 Data Loss (minor) 4 | . . . . . . . . . . . . 4 Data Loss (major) 1 | . . . . . . . . . . . . 1 Misfires 1 | . . . . . . . . . . . . 1 Alerts 1 | . . . . . . . . . . . . 1 Misdirections 7 | . . . . . . . . . . . . 7 Weapon Failures 2 | . . . . . . . . . . . . 2 Overload Shots . | . . . . . . . . . . . . . Overflow Damage 154 | . . . . 57 . . . . . . . 97 Projectiles 24 | . . . . 24 . . . . . . . . Explosions 33 | . . . . 33 . . . . . . . . Melee 97 | . . . . . . . . . . . . 97 Knockbacks . | . . . . . . . . . . . . . Impact . | . . . . . . . . . . . . . Kinetic . | . . . . . . . . . . . . . Secondary . | . . . . . . . . . . . . . Self-Inflicted Damage 180 | . . . . 65 32 . . 79 . . . 4 Shots 6 | . . . . 3 1 . . 2 . . . . Rammed 2 | . . . . . . . . . . . . 2 Targets Rammed 2 | . . . . . . . . . . . . 2 Kicked . | . . . . . . . . . . . . . Crushed . | . . . . . . . . . . . . . Highest Temperature 445 | . 5 . 80 445 125 213 . 9 . . 63 213 Average Temperature 81 | . 2 . 33 145 36 92 . 9 . . 34 67 Received Heat Transfer 765 | . 222 . 18 180 12 222 . 45 . . 18 48 Effects 3 | . . . . 3 . . . . . . . . Shutdowns 1 | . . . . 1 . . . . . . . . Energy Bleed 1 | . . . . 1 . . . . . . . . Damage (minor) 1 | . . . . 1 . . . . . . . . Siege Activations . | . . . . . . . . . . . . . Robots Corrupted 2 | . . . . . . 1 1 . . . . . Combat Hostiles 1 | . . . . . . 1 . . . . . . Parts Fried 7 | . . . . 2 . 1 2 2 . . . . Impact Corruptions . | . . . . . . . . . . . . . Robots Melted . | . . . . . . . . . . . . . Combat Hostiles . | . . . . . . . . . . . . . Parts Melted 1 | . . . 1 . . . . . . . . . Heat Transferred 877 | . . . 481 396 . . . . . . . . Parts Sabotaged . | . . . . . . . . . . . . . Parts Stolen . | . . . . . . . . . . . . . Parts Stripped . | . . . . . . . . . . . . . Power Chain Reactions 2 | . . . . 1 . 1 . . . . . . Alert | -11 -10 -10 -9 -8 -7 -7 -6 -6 -6 -5 -5 -4 ------- Run | Yrd Mat Min Mat Mat Fac DSF Fac Low Low Fac DSF Fac Peak Influence 688 | 5 240 70 140 688 258 124 115 . . 10 7 79 Initial 228 | . 3 53 27 33 228 . 44 . . . 7 . Average 84 | . 97 58 72 314 167 68 53 . . 2 . 22 Maximum Alert Level 2 | . 1 . . 2 1 . . . . . . . Low Security (%) 89 | 100 92 100 100 28 51 100 100 . . 100 100 100 Level 1 8 | . 7 . . 48 48 . . . . . . . Level 2 1 | . . . . 23 . . . . . . . . Level 3 . | . . . . . . . . . . . . . Level 4 . | . . . . . . . . . . . . . Level 5 . | . . . . . . . . . . . . . High Security . | . . . . . . . . . . . . . Max Security . | . . . . . . . . . . . . . Squads Dispatched 12 | . 4 . 2 2 . 1 1 . . . . 2 Investigation 3 | . 1 . 1 1 . . . . . . . . Extermination 3 | . . . . . . . 1 . . . . 2 Reinforcement 6 | . 3 . 1 1 . 1 . . . . . . Assault . | . . . . . . . . . . . . . Garrison . | . . . . . . . . . . . . . Intercept . | . . . . . . . . . . . . . Searches Triggered . | . . . . . . . . . . . . . Construction Impeded . | . . . . . . . . . . . . . Haulers Reinforced . | . . . . . . . . . . . . . Active Scanning Responses . | . . . . . . . . . . . . . Cargo Convoy Interrupts . | . . . . . . . . . . . . . Stealth | -11 -10 -10 -9 -8 -7 -7 -6 -6 -6 -5 -5 -4 --------- Run | Yrd Mat Min Mat Mat Fac DSF Fac Low Low Fac DSF Fac Distress Signals 3 | . 1 . . 2 . . . . . . . . Communications Jammed . | . . . . . . . . . . . . . Distress Signals . | . . . . . . . . . . . . . Times Spotted 104 | . 22 3 12 23 2 6 3 8 . . 5 20 Peak Tracking Total 10 | . 5 3 4 5 1 3 1 4 . . 4 10 Tactical Retreats 6 | . 1 . 1 . 1 . . . . . . 3 Traps | -11 -10 -10 -9 -8 -7 -7 -6 -6 -6 -5 -5 -4 ------- Run | Yrd Mat Min Mat Mat Fac DSF Fac Low Low Fac DSF Fac Traps Triggered 1 | . . . . . . . . . . . . 1 Indirectly . | . . . . . . . . . . . . . Trap Hack Attempts . | . . . . . . . . . . . . . Triggered . | . . . . . . . . . . . . . Disarmed 2 | . . . 2 . . . . . . . . . Reprogrammed 6 | . 6 . . . . . . . . . . . Reused 1 | . 1 . . . . . . . . . . . Traps Extracted . | . . . . . . . . . . . . . Installed . | . . . . . . . . . . . . . Triggered 2 | . 1 . . . . . . 1 . . . . Machines | -11 -10 -10 -9 -8 -7 -7 -6 -6 -6 -5 -5 -4 ---------- Run | Yrd Mat Min Mat Mat Fac DSF Fac Low Low Fac DSF Fac Machines Disabled 1 | . . . . 1 . . . . . . . . Max in Single Turn 1 | . . . . 1 . . . . . . . . Garrison Access 2 | . . . . 1 1 . . . . . . . Machines Repaired . | . . . . . . . . . . . . . Machines Dismantled . | . . . . . . . . . . . . . Machines Sabotaged . | . . . . . . . . . . . . . Overloaded Fab Kills . | . . . . . . . . . . . . . Hacking | -11 -10 -10 -9 -8 -7 -7 -6 -6 -6 -5 -5 -4 --------- Run | Yrd Mat Min Mat Mat Fac DSF Fac Low Low Fac DSF Fac Machines Accessed 32 | . 4 . 5 8 6 . 4 . . 2 . 3 Terminals 26 | . 4 . 4 7 4 . 3 . . 2 . 2 Fabricators 1 | . . . . . . . 1 . . . . . Repair Stations 2 | . . . 1 . 1 . . . . . . . Recycling Units 1 | . . . . . . . . . . . . 1 Scanalyzers . | . . . . . . . . . . . . . Garrison Access 2 | . . . . 1 1 . . . . . . . Total Hacks 65 | . 8 . 8 21 14 . 7 . . 4 . 3 Successful 34 | . 5 . 5 5 13 . 3 . . 2 . 1 Failed 31 | . 3 . 3 16 1 . 4 . . 2 . 2 Catastrophic 6 | . 1 . 1 3 . . . . . . . 1 Database Lockouts . | . . . . . . . . . . . . . Manual 23 | . 3 . 4 12 1 . 2 . . . . 1 Terminals 53 | . 8 . 5 20 9 . 5 . . 4 . 2 Fabricators 2 | . . . . . . . 2 . . . . . Repair Stations 7 | . . . 3 . 4 . . . . . . . Recycling Units 1 | . . . . . . . . . . . . 1 Scanalyzers . | . . . . . . . . . . . . . Garrison Access 2 | . . . . 1 1 . . . . . . . Terminal Hacks 24 | . 5 . 3 4 8 . 1 . . 2 . 1 Record 4 | . . . . . 3 . . . . 1 . . Robot Analysis 1 | . 1 . . . . . . . . . . . Open DSF 4 | . . . . . 1 . 1 . . 1 . 1 Branch Access Points 3 | . 1 . 1 1 . . . . . . . . Alert Level 3 | . . . . 1 2 . . . . . . . Unreport Threat 1 | . . . . . 1 . . . . . . . Locate Traps 1 | . . . . . 1 . . . . . . . Disarm Traps 1 | . . . 1 . . . . . . . . . Reprogram Traps 1 | . 1 . . . . . . . . . . . Recall Investigation 1 | . . . . 1 . . . . . . . . Recall Reinforcements 1 | . 1 . . . . . . . . . . . Hauler Manifests 3 | . 1 . 1 1 . . . . . . . . Fabricator Hacks 1 | . . . . . . . 1 . . . . . Network Status 1 | . . . . . . . 1 . . . . . Repair Station Hacks 6 | . . . 2 . 4 . . . . . . . Scan Component 3 | . . . 1 . 2 . . . . . . . Repair 3 | . . . 1 . 2 . . . . . . . Recycling Unit Hacks . | . . . . . . . . . . . . . Scanalyzer . | . . . . . . . . . . . . . Garrison Access Hacks 2 | . . . . 1 1 . . . . . . . Seal Access 2 | . . . . 1 1 . . . . . . . Unauthorized Hacks 1 | . . . . . . . 1 . . . . . Terminals 1 | . . . . . . . 1 . . . . . Assimilate 1 | . . . . . . . 1 . . . . . Fabricators . | . . . . . . . . . . . . . Repair Stations . | . . . . . . . . . . . . . Recycling Units . | . . . . . . . . . . . . . Scanalyzers . | . . . . . . . . . . . . . Garrison Access . | . . . . . . . . . . . . . Data Cores Recovered 1 | . . . . 1 . . . . . . . . Used . | . . . . . . . . . . . . . Hacking Detections 22 | . 3 . 4 7 2 . 2 . . 2 . 2 Full Trace Events 1 | . . . . 1 . . . . . . . . Feedback Events . | . . . . . . . . . . . . . Feedback Blocked . | . . . . . . . . . . . . . Robot Schematics Acquired . | . . . . . . . . . . . . . Robots Built . | . . . . . . . . . . . . . Authchips . | . . . . . . . . . . . . . Time . | . . . . . . . . . . . . . Total Robot Build Rating . | . . . . . . . . . . . . . Part Schematics Acquired . | . . . . . . . . . . . . . Parts Built . | . . . . . . . . . . . . . Authchips . | . . . . . . . . . . . . . Time . | . . . . . . . . . . . . . Total Part Build Rating . | . . . . . . . . . . . . . Parts Repaired 3 | . . . 1 . 2 . . . . . . . Time 90 | . . . 26 . 64 . . . . . . . Parts Recycled . | . . . . . . . . . . . . . Recycled Matter . | . . . . . . . . . . . . . Retrieved Matter . | . . . . . . . . . . . . . Retrieved Components . | . . . . . . . . . . . . . Parts Scanalyzed . | . . . . . . . . . . . . . Part Schematics Acquired . | . . . . . . . . . . . . . Parts Damaged . | . . . . . . . . . . . . . Bothacking | -11 -10 -10 -9 -8 -7 -7 -6 -6 -6 -5 -5 -4 ------------ Run | Yrd Mat Min Mat Mat Fac DSF Fac Low Low Fac DSF Fac Used RIF Installer . | . . . . . . . . . . . . . Robots Hacked 3 | . . . . . . . 3 . . . . . Non-combat 3 | . . . . . . . 3 . . . . . Combat . | . . . . . . . . . . . . . Robot Hacks Applied 3 | . . . . . . . 3 . . . . . parse_system 1 | . . . . . . . 1 . . . . . find_chute 1 | . . . . . . . 1 . . . . . find_recycling 1 | . . . . . . . 1 . . . . . Relay Couplers Released . | . . . . . . . . . . . . . Fabnet Peak Effective % . | . . . . . . . . . . . . . Robots Rewired . | . . . . . . . . . . . . . Allies Hacked 1 | . . . . . . . 1 . . . . . Hacks Repelled . | . . . . . . . . . . . . . Allies | -11 -10 -10 -9 -8 -7 -7 -6 -6 -6 -5 -5 -4 -------- Run | Yrd Mat Min Mat Mat Fac DSF Fac Low Low Fac DSF Fac Total Allies 2 | . . 1 . . . . 1 . . . . . Largest Group 1 | . . 1 1 . . . 1 1 . . . . Highest-Rated Group 31 | . . 31 31 . . . 26 26 . . . . Highest-Rated Ally 31 | . . 31 31 . . . 26 26 . . . . Total Orders . | . . . . . . . . . . . . . Ally Attacks . | . . . . . . . . . . . . . Total Damage . | . . . . . . . . . . . . . Kills . | . . . . . . . . . . . . . Allies Corrupted . | . . . . . . . . . . . . . Allies Melted . | . . . . . . . . . . . . . Intel | -11 -10 -10 -9 -8 -7 -7 -6 -6 -6 -5 -5 -4 ------- Run | Yrd Mat Min Mat Mat Fac DSF Fac Low Low Fac DSF Fac Robot Analysis Total 1 | . 1 . . . . . . . . . . . Derelict Logs Recovered 2 | . . 2 . . . . . . . . . . Drone Launches . | . . . . . . . . . . . . . Drone Recoveries . | . . . . . . . . . . . . . Exploration | -11 -10 -10 -9 -8 -7 -7 -6 -6 -6 -5 -5 -4 ------------- Run | Yrd Mat Min Mat Mat Fac DSF Fac Low Low Fac DSF Fac Turns Passed 6477 | 123 1060 735 940 439 443 185 726 449 46 38 105 1188 Spaces Moved 5950 | 54 518 342 804 561 648 220 826 844 163 100 92 778 Core 191 | 11 . . . . . . . . . . 14 166 Treads 1129 | 43 518 342 205 . . 2 . . . . . 19 Legs 220 | . . . . . . . . . . . 58 162 Wheels . | . . . . . . . . . . . . . Hover 335 | . . . . . . . . . . . . 335 Flight 4075 | . . . 599 561 648 218 826 844 163 100 20 96 Fastest Speed 26 | 50 160 160 29 28 26 26 29 26 28 26 26 40 Average Speed 68 | 137 160 160 63 28 33 47 63 30 28 26 92 86 Slowest Speed 240 | 160 160 160 240 101 100 170 175 106 28 28 200 190 Overloaded Moves . | . . . . . . . . . . . . . Propulsion Burnouts . | . . . . . . . . . . . . . Robots Hopped 5 | . . . . . 1 . 1 . . 2 . 1 Cave-ins Triggered . | . . . . . . . . . . . . . Exploration Rate (%) 44 | 4 80 65 46 42 18 92 21 83 17 4 100 11 Regions Visited 12 Branch Regions 3 Pre-discovered Areas . | . . . . . . . . . . . . . Known Exits Taken 3 | . 1 . . . 1 . . . . 1 . . Unknown Exits Taken 7 | 1 . 1 1 1 . . 1 1 1 . . . Scrap Searched 4 | . . 1 . . . . . 3 . . . . Spaces Dug 10 | . . . . 4 3 . . . . . . 3 Terrain Destroyed 181 | . . . . 122 3 9 . 44 . . . 3 Melee 3 | . . . . . . . . . . . . 3 Projectile 5 | . . . . 5 . . . . . . . . AOE 173 | . . . . 117 3 9 . 44 . . . . Terrain Rammed . | . . . . . . . . . . . . . Walls Destroyed . | . . . . . . . . . . . . . Machines Disabled . | . . . . . . . . . . . . . Actions | -11 -10 -10 -9 -8 -7 -7 -6 -6 -6 -5 -5 -4 --------- Run | Yrd Mat Min Mat Mat Fac DSF Fac Low Low Fac DSF Fac Total 7889 | 97 636 493 1162 746 863 263 1007 1010 162 107 113 1230 Wait 1381 | 23 54 125 245 87 198 5 137 142 . 2 13 350 Move 5928 | 53 517 341 803 560 645 219 823 843 162 95 91 776 Hop 5 | . . . . . 1 . 1 . . 2 . 1 Pick Up 86 | 11 6 5 17 10 1 8 7 . . . 2 19 Fast Attach 34 | . . . 7 6 5 1 5 2 . 5 . 3 Attach 58 | 7 . . 3 5 . 7 7 . . . 4 25 Detach 14 | . . . 1 1 . . 2 1 . . 2 7 Swap 52 | . 1 3 14 17 7 1 4 5 . . . . Drop 63 | . 1 1 32 12 3 3 6 1 . 3 1 . Fire 242 | 3 57 18 40 48 3 19 15 16 . . . 23 Melee 24 | . . . . . . . . . . . . 24 Ram 2 | . . . . . . . . . . . . 2 Kick . | . . . . . . . . . . . . . Crush . | . . . . . . . . . . . . . Escape Stasis . | . . . . . . . . . . . . . Rewire . | . . . . . . . . . . . . . Trap . | . . . . . . . . . . . . . Miscellaneous . | . . . . . . . . . . . . . Route ------- -11/Scrapyard -10/Materials (discovered 4 exits: *Mat x3 / *Min) -10/Mines -9/Materials (discovered 4 exits: *Mat / Min x2 / Sto) -8/Materials -7/Factory -7/DSF -6/Factory (discovered 3 exits: *Fac x2 / [*Low]) -6/Lower Caves -6/Lower Caves -5/Factory -5/DSF -4/Factory History --------- Turn | Location | Event 4 | -11/Scrapyard | Discovered new exit (range 15) 124 | -11/Scrapyard | Entered Materials 312 | -10/Materials | Build established: Mutant 500 | -10/Materials | Discovered new exit (range 8) 508 | -10/Materials | Discovered new exit (range 16) 673 | -10/Materials | Discovered new exit (range 14) 747 | -10/Materials | Discovered new exit (range 14) 979 | -10/Materials | Identified exit to Mines 1184 | -10/Materials | Entered Mines 1186 | -10/Mines | Met a Derelict bent on vengeance 1342 | -10/Mines | Learned Materials trap positions 1573 | -10/Mines | Discovered new exit (range 12) 1591 | -10/Mines | Learned location of 1 exit from Materials 1777 | -10/Mines | Joined a pair of Derelicts in attacking an 0b10 outpost 1845 | -10/Mines | Received a Mining Laser from a helpful Derelict 1919 | -10/Mines | Entered Materials 1919 | -9/Materials | Accompanied by 1 ally 1919 | -9/Materials | Evolved 2 slots: Propulsion x2 1920 | -9/Materials | Identified exit to Storage 1921 | -9/Materials | Loaded intel: 20 trap records 2489 | -9/Materials | Repaired Flight Unit 2850 | -9/Materials | Discovered new exit (range 15) 2859 | -9/Materials | Identified exit to Mines 2859 | -9/Materials | Entered another Materials area 2859 | -8/Materials | Evolved 2 slots: Utility x1, Weapon x1 3127 | -8/Materials | Discovered new exit (range 17) 3143 | -8/Materials | Build established: Sprinter 3298 | -8/Materials | Entered Factory 3298 | -7/Factory | Evolved 2 slots: Power x1, Propulsion x1 3470 | -7/Factory | Repaired Lgt. Nuclear Core 3498 | -7/Factory | Repaired Grenade Launcher 3741 | -7/Factory | Identified exit to DSF 3741 | -7/Factory | Entered DSF 3766 | -7/DSF | Additional patrols routed to DSF 3876 | -7/DSF | Lost 7 parts (2p2n1u2w) 3909 | -7/DSF | Discovered new exit (range 19) 3926 | -7/DSF | Entered Factory 3926 | -6/Factory | Evolved 2 slots: Utility x2 3938 | -6/Factory | Discovered new exit (range 15) 4055 | -6/Factory | Discovered new exit (range 12) 4399 | -6/Factory | Discovered new exit (range 5) 4652 | -6/Factory | Entered Lower Caves 4652 | -6/Lower Caves | Accompanied by 1 ally 4726 | -6/Lower Caves | Spotted B-75 Beast 4929 | -6/Lower Caves | Encountered a Warlord checkpoint 5064 | -6/Lower Caves | Discovered new exit (range 9) 5101 | -6/Lower Caves | Entered another Lower Caves area 5106 | -6/Lower Caves | Discovered new exit (range 12) 5147 | -6/Lower Caves | Entered Factory 5147 | -5/Factory | Evolved 2 slots: Propulsion x1, Weapon x1 5175 | -5/Factory | Identified exit to DSF 5185 | -5/Factory | Entered DSF 5185 | -5/DSF | Met a pair of Sappers preparing to destroy DSF 5207 | -5/DSF | Additional patrols routed to DSF 5232 | -5/DSF | Lost 10 parts (2p5n2u1w) 5246 | -5/DSF | Discovered new exit (range 19) 5290 | -5/DSF | Entered Factory 5290 | -4/Factory | Evolved 2 slots: Propulsion x1, Utility x1 5633 | -4/Factory | Build established: Gunner 5704 | -4/Factory | System corruption reached 10% 5748 | -4/Factory | Lost 9 parts (2p2n1u4w) 6175 | -4/Factory | Lost 6 parts (1p1n3u1w) 6336 | -4/Factory | Core integrity fell below 50% 6411 | -4/Factory | Core integrity fell below 20% 6414 | -4/Factory | Lost 7 parts (1p5n1u) 6425 | -4/Factory | Build established: Mutant 6478 | -4/Factory | Destroyed by S-27 Virus with Autogun Last Messages --------------- 06382_ Hacking Suite destroyed. 06383_ Impulse Thruster destroyed. 06383_ Penetrated by Slug. 06391_ Slug penetrates Repair Station. 06393_ VMRVAZ 7 MI19Z&PIG5KOFQQQRTA1PT 06404_ Acquired Impulse Thruster. 06410_ Penetrated by Slug. 06414_ Connecting with Recycling Unit... 06417_ System corrupted: Matter fused (-7). 06446_ Slug penetrates Wall. 06446_ Slug penetrates H-77 Assassin. 06446_ Penetrated by Slug. 06447_ =DWPIY|FS0V% J5I,CS|XL&8R>DS%I>/ 06448_ Slug penetrates Wall. 06449_ Penetrated by Slug. 06450_ Slug penetrates Wall. 06450_ Penetrated by Slug. 06450_ Slug penetrates Wall. 06450_ Impulse Thruster destroyed. 06451_ Penetrated by Slug. Map ----- +----------------------------------------------------+ | # " !! " #???????# ###+#############+#### | | # " " ######### # #???# # | | + " " ## # """ """ #???# "" # | | # " " ## # """ """ #???# """ # | | # " " "" ## """ """ # """ """ #???# S" # | | # " " Y" ## """ """ # #???# """ # | | # " " "" ## """ """ # #???# """ # | | # ## # #???# # | | ###"############ # #???# # | | "" "" ###########??## !! # | | ""R"" #????????????# !! # | | """" #????????????## ! # | | #?????????????# # | | #?????????????# # | | #################+####### #?????????????######## | | #?????????# # #????????????????????? | | #?????????# # #????????????????????? | | #?????????# """"""" # k#????????????????????? | | #?????????# """"""" # #????????????????????? | | #?????????# """"""" # #????????????????????? | | #?????????# """"""" # #????????????????????? | | #?????????# # #????????????????????? | | #?????????# # #????????????????????? | | ##?????????# ??# #????????????????????? | | ???????????# !! ??# #????????????????????? | | ???????????# ! ???#@ #????????????????????? | | ???????????# ???+ #????????????????????? | | ???????????###########??# #????????????????????? | | ????????????????????????# #????????????????????? | | ????????????????????????# #????????????????????? | | ????????????????????????# #????????????????????? | | ????????????????????????# #????????????????????? | | ????????????????????????# #????????????????????? | | ????????????????????????# #????????????????????? | | ????????????????????????# #????????????????????? | | ????????????????????????# #????????????????????? | | ????????????????????????? #????????????????????? | | ????????????????????????? #????????????????????? | | ????????????????????????? #????????????????????? | | ?????????????????????????s ????????????????????? | | ????????????????????????? ????????????????????? | | ????????????????????????? s ????????????????????? | | ?????????????????????????ss #????????????????????? | | ????????????????????????? ?????????????????????? | | ????????????????????????? ?????????????????????? | | ?????????????????????????????????????????????????? | | ?????????????????????????????????????????????????? | | ?????????????????????????????????????????????????? | | ?????????????????????????????????????????????????? | | ?????????????????????????????????????????????????? | +----------------------------------------------------+ Best States ------------- Heat Dissipation 67 Coolant Potential 100 Energy Generation 33 Energy Capacity 550 Matter Stores 300 Matter Capacity 300 Sight Range 20 Terrain Scan Density 10 Jamming Range 16 Additional Mass Support 9 Base Temperature (-) 150 Armor Coverage 225 Evasion (%) 64 Targeting Accuracy 5 Armor Integrity Analysis 40 Recoil Reduction 4 Offensive Hacking 10 Defensive Hacking 10 Item Schematics ----------------- None Robot Schematics ------------------ None Fabricated ------------ Nothing Alien Tech Used ----------------- None Achievements -------------- Use The Force Challenges ------------ None Game ------ Seed DeliveryLightningPick Manual? 0 Play Time 02:06:10 Cumulative 27.0 hours Start 2024.04.09 @ 18:36:47 End 2024.04.11 @ 17:56:15 Sessions 7 Manual Loads 0 Difficulty Rogue Special Mode None Game No. 16 Rogue 16 Adventurer 0 Explorer 0 Win Type - Total 0 Types 0/0/0/0/0/0/0/0/0 Lore% 22 Gallery% 26 Achievement% 21 Wizard Run 0 Options --------- Layout 1 ASCII 0 Keyboard 0 Movement Mouse Keybinds 0 Fullscreen 1 Font 24/Smallcaps Map View 50x35 Zoom Use 0% Tactical HUD 1 Map Filters NONE Filters NONE Steam 1 RUN: dfda7f91-3ef8-41eb-94a4-a7dc56d30afb